fUST/lending_fUST_20250930
["ID","MTS","AMOUNT","RATE_DAILY","PERIOD"]
[388522901,1759230758059,400.77,0.00019178,2]
[388522902,1759230759682,357.32740941,0.00019178,2]
[388522903,1759230759707,124.66036878,0.00019178,2]
[388522904,1759230769802,500.0,0.00019178,2]
[388522905,1759230770164,500.0,0.00019178,2]
[388522906,1759230770385,517.36,0.00019178,2]
[388522907,1759230773631,480.0,0.00019178,2]
[388522908,1759230775212,171.05,0.00019178,2]
[388522909,1759230783911,4566.71,0.00019178,2]
[388522910,1759230787187,485.47,0.00019178,2]
[388522911,1759230787526,500.0,0.00019178,2]
[388522912,1759230790495,500.0,0.00019178,2]
[388522913,1759230800284,480.0,0.00019178,2]
[388522914,1759230806515,596.28225849,0.00019178,2]
[388522915,1759230806626,578.47737273,0.00019178,2]
[388522916,1759230806647,1223.71262727,0.00019178,2]
[388522917,1759230807779,460.0,0.00019178,2]
[388522918,1759230809532,460.0,0.00019178,2]
[388522919,1759230811457,461.21940055,0.00019178,2]
[388522920,1759230813337,481.94456276,0.00019178,2]
[388522921,1759230814664,2981.95,0.00019178,2]
[388522922,1759230828342,500.0,0.00019178,2]
[388522923,1759230831473,500.0,0.00019178,2]
[388522924,1759230833047,2931.18340942,0.00019178,2]
[388522925,1759230833072,2068.81659058,0.00019178,2]
[388522926,1759230834773,500.0,0.00019178,2]
[388522927,1759230836557,327.63521193,0.00019178,2]
[388522928,1759230842203,500.0,0.00019178,2]
[388522929,1759230844644,500.0,0.00019178,2]
[388522930,1759230846119,500.0,0.00019178,2]
[388522931,1759230846186,460.0,0.00019178,2]
[388522932,1759230848938,500.0,0.00019178,2]
[388522933,1759230849457,480.0,0.00019178,2]
[388522934,1759230850643,500.0,0.00019178,2]
[388522935,1759230852713,281.07,0.00019178,2]
[388522936,1759230854940,500.0,0.00019178,2]
[388522937,1759230857247,203.74681374,0.00019118,2]
[388522938,1759230860633,480.0,0.00019178,2]
[388522939,1759230865963,210.1965233,0.00018247,2]
[388522940,1759230867253,1988.54486045,0.00019178,2]
[388522941,1759230867275,1910.72513955,0.00019178,2]
[388522942,1759230873258,170.6148935,0.00019118,2]
[388522943,1759230875070,500.0,0.00019178,2]
[388522944,1759230880036,460.0,0.00019178,2]
[388522945,1759230880192,596.61580492,0.00019178,2]
[388522946,1759230882334,460.0,0.00019178,2]
[388522947,1759230882850,184.39571548,0.0001919,2]
[388522948,1759230883201,500.0,0.00019178,2]
[388522949,1759230883793,500.0,0.00019178,2]
[388522950,1759230891199,500.0,0.00019178,2]
[388522951,1759230893400,500.0,0.00019178,2]
[388522952,1759230895534,500.0,0.00019178,2]
[388522953,1759230901628,249.03167229,0.00019209,2]
[388522954,1759230906471,315.33188591,0.00019178,2]
[388522955,1759230908641,165.0,0.00018493,3]
[388522956,1759230911900,500.0,0.00019178,2]
[388522957,1759230918781,500.0,0.00019178,2]
[388522958,1759230922458,332.26306786,0.00019178,2]
[388522959,1759230940659,500.0,0.00019178,2]
[388522960,1759230946908,500.0,0.00019178,2]
[388522961,1759230959122,500.0,0.00019178,2]
[388522962,1759230959663,500.0,0.00019178,2]
[388522963,1759230965170,500.0,0.00019178,2]
[388522964,1759230967518,440.0,0.00019178,2]
[388522965,1759230969661,126.75696004,0.00019178,2]
[388522966,1759230969684,217.06303996,0.00019178,2]
[388522967,1759230970344,579.31,0.00019178,2]
[388522968,1759230971931,179.57,0.00019178,2]
[388522969,1759230972452,500.0,0.00019178,2]
[388522970,1759230975159,480.0,0.00019178,2]
[388522971,1759230977013,482.11932971,0.00019178,2]
[388522972,1759230978995,500.0,0.00019178,2]
[388522973,1759230979916,500.0,0.00019178,2]
[388522974,1759230983447,1044.85,0.00019178,2]
[388522975,1759230984508,500.0,0.00019178,2]
[388522976,1759230984839,500.0,0.00019178,2]
[388522977,1759230991179,492.33058936,0.00019178,2]
[388522978,1759230994102,480.0,0.00019178,2]
[388522979,1759231000577,689.84,0.00019178,2]
[388522980,1759231009203,2854.92704097,0.00019178,2]
[388522981,1759231009227,2.77295903,0.00019178,2]
[388522982,1759231010181,512.84,0.00019178,2]
[388522983,1759231011424,500.0,0.00019178,2]
[388522984,1759231015230,331.0,0.00028767,120]
[388522985,1759231015437,500.0,0.00019178,2]
[388522986,1759231019077,500.0,0.00019178,2]
[388522987,1759231019833,500.0,0.00019178,2]
[388522988,1759231023536,500.0,0.00019178,2]
[388522989,1759231025312,500.0,0.00019178,2]
[388522990,1759231027142,500.0,0.00019178,2]
[388522991,1759231034643,500.0,0.00019178,2]
[388522992,1759231039015,500.0,0.00019178,2]
[388522993,1759231040500,500.0,0.00019178,2]
[388522994,1759231041189,500.0,0.00019178,2]
[388522995,1759231045322,500.0,0.00019178,2]
[388522996,1759231051275,500.0,0.00019178,2]
[388522997,1759231052216,500.0,0.00019178,2]
[388522998,1759231060670,500.0,0.00019178,2]
[388522999,1759231065513,792.39,0.00019178,2]
[388523000,1759231069510,500.0,0.00019178,2]
[388523001,1759231070929,553.12,0.00019178,2]
[388523002,1759231077929,1154.5,0.0001919,2]
[388523003,1759231077952,2180.78199715,0.0001919,2]
[388523004,1759231079418,703.47,0.00019178,2]
[388523005,1759231081197,500.0,0.00019178,2]
[388523006,1759231090686,500.0,0.00019178,2]
[388523007,1759231091239,500.0,0.00019178,2]
[388523008,1759231095717,500.0,0.00019178,2]
[388523009,1759231102114,500.0,0.00019178,2]
[388523010,1759231102884,726.94,0.00019178,2]
[388523011,1759231119116,500.0,0.00019178,2]
[388523012,1759231138232,500.0,0.00019178,2]
[388523013,1759231140304,500.0,0.00019178,2]
[388523014,1759231149522,500.0,0.00019178,2]
[388523015,1759231151740,179.549441,0.00018247,2]
[388523016,1759231152141,500.0,0.00019178,2]
[388523017,1759231154157,500.0,0.00019178,2]
[388523018,1759231156511,500.0,0.00019178,2]
[388523019,1759231158596,209.26856185,0.00019178,2]
[388523020,1759231158620,290.73143815,0.00019178,2]
[388523021,1759231159950,500.0,0.00019178,2]
[388523022,1759231164830,500.0,0.00019178,2]
[388523023,1759231228344,282.0,0.00019014,3]
[388523024,1759231468712,-1200.0,0.00019177,2]
[388523025,1759231468742,-300.0,0.00019177,2]
[388523026,1759231468963,168.0,0.00019022,2]
[388523027,1759231474230,168.0,0.00018929,2]
[388523028,1759231485116,168.0,0.00019167,2]
[388523029,1759231502135,300.0,0.00019177,2]
[388523030,1759231502162,300.0,0.00019177,2]
[388523031,1759231502268,300.0,0.00019177,2]
[388523032,1759231503335,300.0,0.00019177,2]
[388523033,1759231506976,1200.0,0.00019177,2]
[388523035,1759231562356,300.0,0.00019177,2]
[388523038,1759231588083,1193.29249348,0.00019119,2]
[388523039,1759231622781,300.0,0.00019177,2]
[388523040,1759231644593,607.0,0.00019177,2]
[388523041,1759231659157,1695.71750652,0.00019177,2]
[388523042,1759231659181,2376.46249348,0.00019177,2]
[388523045,1759231717334,168.0,0.00018979,2]
[388523046,1759231720877,7455.54750652,0.00019063,7]
[388523047,1759231720900,5896.85989733,0.00019063,7]
[388523081,1759231742441,300.0,0.00019177,2]
[388523082,1759231760599,2668.22559772,0.00019152,2]
[388523083,1759231784191,800.0,0.00018987,2]
[388523099,1759231832398,-153.2787178,0.0001914,2]
[388523100,1759231832409,-800.0,0.00019161,2]
[388523101,1759231832419,-300.0,0.00019177,2]
[388523102,1759231832428,-1200.0,0.00019177,2]
[388523103,1759231832439,-500.0,0.00019178,2]
[388523104,1759231832453,-500.0,0.00019178,2]
[388523105,1759231832463,-500.0,0.00019178,2]
[388523108,1759231832472,-500.0,0.00019178,2]
[388523109,1759231832481,-516.86,0.00019178,2]
[388523112,1759231832491,-500.0,0.00019178,2]
[388523114,1759231832500,-500.0,0.00019178,2]
[388523116,1759231832509,-500.0,0.00019178,2]
[388523118,1759231832519,-500.0,0.00019178,2]
[388523119,1759231832528,-227.82244258,0.00019178,2]
[388523120,1759231832537,-1060.52,0.00019178,2]
[388523121,1759231832546,-296.32520301,0.00019178,2]
[388523122,1759231832555,-500.0,0.00019178,2]
[388523123,1759231832564,-739.66,0.00019178,2]
[388523124,1759231832573,-602.7,0.00019178,2]
[388523125,1759231832582,-500.0,0.00019178,2]
[388523126,1759231832592,-486.63485749,0.00019178,2]
[388523127,1759231832601,-500.0,0.00019178,2]
[388523128,1759231832611,-500.0,0.00019178,2]
[388523129,1759231832620,-500.0,0.00019178,2]
[388523130,1759231832629,-500.0,0.00019178,2]
[388523131,1759231832638,-577.29823387,0.00019178,2]
[388523132,1759231832647,-287.80588397,0.00019178,2]
[388523133,1759231832657,-500.0,0.00019178,2]
[388523134,1759231832666,-500.0,0.00019178,2]
[388523135,1759231832676,-500.0,0.00019178,2]
[388523136,1759231832685,-500.0,0.00019178,2]
[388523137,1759231832694,-500.0,0.00019178,2]
[388523138,1759231832704,-500.0,0.00019178,2]
[388523139,1759231832713,-500.0,0.00019178,2]
[388523140,1759231832723,-500.0,0.00019178,2]
[388523141,1759231832733,-500.0,0.00019178,2]
[388523142,1759231832742,-500.0,0.00019178,2]
[388523143,1759231832752,-500.0,0.00019178,2]
[388523144,1759231832761,-500.0,0.00019178,2]
[388523145,1759231832770,-551.45027246,0.00019178,2]
[388523146,1759231832780,-500.0,0.00019178,2]
[388523147,1759231832789,-500.0,0.00019178,2]
[388523149,1759231832799,-555.17,0.00019178,2]
[388523151,1759231832808,-500.0,0.00019178,2]
[388523153,1759231832817,-735.44,0.00019178,2]
[388523155,1759231832826,-500.0,0.00019178,2]
[388523157,1759231832836,-500.0,0.00019178,2]
[388523159,1759231832845,-500.0,0.00019178,2]
[388523160,1759231832854,-480.0,0.00019178,2]
[388523162,1759231832864,-500.0,0.00019178,2]
[388523164,1759231832873,-4195.61335084,0.00019178,2]
[388523165,1759231832885,-180.81664916,0.00019178,2]
[388523166,1759231832894,-500.0,0.00019199,2]
[388523167,1759231832903,-194.85043957,0.00019199,2]
[388523401,1759231840226,-500.0,0.00019177,2]
[388523402,1759231840236,-500.0,0.00019177,2]
[388523403,1759231840245,-500.0,0.00019177,2]
[388523404,1759231840255,-500.0,0.00019177,2]
[388523405,1759231840264,-305.14956043,0.00019177,2]
[388523406,1759231840273,-500.0,0.00019177,2]
[388523407,1759231840283,-500.0,0.00019177,2]
[388523408,1759231840292,-500.0,0.00019177,2]
[388523409,1759231840301,-500.0,0.00019177,2]
[388523410,1759231840311,-500.0,0.00019177,2]
[388523411,1759231840320,-500.0,0.00019177,2]
[388523412,1759231840330,-500.0,0.00019177,2]
[388523413,1759231840342,-500.0,0.00019177,2]
[388523414,1759231840351,-500.0,0.00019177,2]
[388523415,1759231840361,-500.0,0.00019177,2]
[388523416,1759231840370,-500.0,0.00019177,2]
[388523417,1759231840379,-500.0,0.00019177,2]
[388523418,1759231840388,-500.0,0.00019177,2]
[388523419,1759231840398,-500.0,0.00019177,2]
[388523420,1759231840408,-500.0,0.00019177,2]
[388523421,1759231840417,-500.0,0.00019177,2]
[388523422,1759231840428,-500.0,0.00019177,2]
[388523423,1759231840437,-500.0,0.00019177,2]
[388523424,1759231840446,-500.0,0.00019177,2]
[388523425,1759231840455,-500.0,0.00019177,2]
[388523426,1759231840464,-482.72388143,0.00019177,2]
[388523427,1759231840474,-500.0,0.00019177,2]
[388523428,1759231840483,-500.0,0.00019177,2]
[388523429,1759231840492,-500.0,0.00019177,2]
[388523430,1759231840502,-500.0,0.00019177,2]
[388523431,1759231840511,-257.61900918,0.00019177,2]
[388523432,1759231840520,-500.0,0.00019177,2]
[388523433,1759231840530,-500.0,0.00019177,2]
[388523434,1759231840538,-500.0,0.00019177,2]
[388523435,1759231840547,-500.0,0.00019177,2]
[388523436,1759231840556,-500.0,0.00019177,2]
[388523437,1759231840565,-500.0,0.00019177,2]
[388523438,1759231840574,-500.0,0.00019177,2]
[388523439,1759231840584,-500.0,0.00019177,2]
[388523440,1759231840592,-500.0,0.00019177,2]
[388523441,1759231840601,-500.0,0.00019177,2]
[388523442,1759231840611,-500.0,0.00019177,2]
[388523443,1759231840619,-500.0,0.00019177,2]
[388523444,1759231840628,-500.0,0.00019177,2]
[388523445,1759231840637,-500.0,0.00019177,2]
[388523446,1759231840646,-500.0,0.00019177,2]
[388523447,1759231840655,-500.0,0.00019177,2]
[388523448,1759231840664,-500.0,0.00019177,2]
[388523449,1759231840835,-500.0,0.00019177,2]
[388523450,1759231840855,-500.0,0.00019177,2]
[388523451,1759231840869,-261.22460074,0.00019177,2]
[388523452,1759231840880,-500.0,0.00019177,2]
[388523453,1759231840892,-500.0,0.00019177,2]
[388523454,1759231840903,-500.0,0.00019177,2]
[388523455,1759231840914,-500.0,0.00019177,2]
[388523456,1759231840923,-500.0,0.00019177,2]
[388523457,1759231840934,-500.0,0.00019177,2]
[388523458,1759231840944,-500.0,0.00019177,2]
[388523459,1759231840954,-500.0,0.00019177,2]
[388523460,1759231840963,-500.0,0.00019177,2]
[388523461,1759231840974,-500.0,0.00019177,2]
[388523462,1759231840983,-500.0,0.00019177,2]
[388523463,1759231840994,-500.0,0.00019177,2]
[388523464,1759231841004,-500.0,0.00019177,2]
[388523465,1759231841014,-500.0,0.00019177,2]
[388523466,1759231841023,-500.0,0.00019177,2]
[388523467,1759231841033,-600.56574666,0.00019177,2]
[388523468,1759231841043,-270.08200644,0.00019177,2]
[388523469,1759231841052,-500.0,0.00019177,2]
[388523470,1759231841061,-500.0,0.00019177,2]
[388523471,1759231841071,-500.0,0.00019177,2]
[388523472,1759231841080,-500.0,0.00019177,2]
[388523473,1759231841089,-500.0,0.00019177,2]
[388523474,1759231841098,-373.70701331,0.00019177,2]
[388523475,1759231841108,-500.0,0.00019177,2]
[388523476,1759231841118,-500.0,0.00019177,2]
[388523477,1759231841128,-500.0,0.00019177,2]
[388523478,1759231841139,-500.0,0.00019177,2]
[388523479,1759231841149,-500.0,0.00019177,2]
[388523480,1759231841159,-500.0,0.00019177,2]
[388523481,1759231841170,-500.0,0.00019177,2]
[388523482,1759231841181,-500.0,0.00019177,2]
[388523483,1759231841191,-500.0,0.00019177,2]
[388523484,1759231841201,-500.0,0.00019177,2]
[388523485,1759231841211,-500.0,0.00019177,2]
[388523486,1759231841220,-500.0,0.00019177,2]
[388523487,1759231841230,-500.0,0.00019177,2]
[388523488,1759231841240,-500.0,0.00019177,2]
[388523489,1759231841249,-500.0,0.00019177,2]
[388523490,1759231841258,-500.0,0.00019177,2]
[388523491,1759231841267,-500.0,0.00019177,2]
[388523492,1759231841276,-500.0,0.00019177,2]
[388523493,1759231841285,-500.0,0.00019177,2]
[388523494,1759231841295,-418.49512651,0.00019177,2]
[388523495,1759231841304,-500.0,0.00019177,2]
[388523496,1759231841314,-500.0,0.00019177,2]
[388523497,1759231841323,-500.0,0.00019178,2]
[388523498,1759231841337,-500.0,0.00019178,2]
[388523499,1759231841346,-500.0,0.00019198,2]
[388523500,1759231841356,-250.53951644,0.00019198,2]
[388523501,1759231841364,-179.38577944,0.00019198,2]
[388523502,1759231841374,-500.0,0.00019198,2]
[388523503,1759231841384,-500.0,0.00019198,2]
[388523504,1759231841393,-213.77820332,0.00019198,2]
[388523505,1759231841402,-500.0,0.00019198,2]
[388523506,1759231841412,-500.0,0.00019198,2]
[388523507,1759231841424,-500.0,0.00019198,2]
[388523508,1759231841437,-500.0,0.00019198,2]
[388523509,1759231841447,-179.743,0.00019201,2]
[388523510,1759231841457,-151.0,0.00019217,2]
[388523511,1759231841468,-151.0,0.00019217,2]
[388523512,1759231841480,-151.0,0.00019217,2]
[388523513,1759231841492,-151.0,0.00019218,2]
[388523514,1759231841502,-151.0,0.00019218,2]
[388523515,1759231841512,-151.0,0.00019218,2]
[388523516,1759231841522,-151.0,0.00019218,2]
[388523517,1759231841532,-198.82813676,0.00019219,2]
[388523518,1759231841542,-198.0,0.00019219,2]
[388523519,1759231841551,-500.0,0.00019219,2]
[388523520,1759231841561,-1156.751358,0.00019219,2]
[388523521,1759231841570,-1175.0,0.00019219,2]
[388523522,1759231841580,-1156.751358,0.00019219,2]
[388523523,1759231841589,-1156.751358,0.00019219,2]
[388523524,1759231841599,-1156.751358,0.00019219,2]
[388523525,1759231841608,-151.0,0.00019219,2]
[388523526,1759231841617,-268.59224938,0.00019219,2]
[388523527,1759231841626,-151.0,0.00019219,2]
[388523528,1759231841637,-592.3642814,0.0001922,2]
[388523529,1759231841646,-153.009909,0.0001922,2]
[388523530,1759231841656,-883.83,0.0001924,3]
[388523531,1759231841665,-500.0,0.00019241,2]
[388523532,1759231841675,-480.0,0.00019241,2]
[388523533,1759231841687,-481.70696856,0.00019241,2]
[388523534,1759231841696,-597.26,0.00019241,2]
[388523535,1759231841706,-500.0,0.00019241,2]
[388523536,1759231841715,-500.0,0.00019241,2]
[388523537,1759231841725,-500.0,0.00019241,2]
[388523538,1759231841735,-500.0,0.00019241,2]
[388523539,1759231841744,-500.0,0.00019241,2]
[388523540,1759231841754,-198.0,0.00019241,2]
[388523541,1759231841763,-198.0,0.00019241,2]
[388523542,1759231841773,-198.0,0.00019241,2]
[388523543,1759231841782,-198.0,0.00019241,2]
[388523544,1759231841792,-500.0,0.00019241,2]
[388523545,1759231841802,-500.0,0.00019241,2]
[388523546,1759231841812,-151.0,0.00019241,2]
[388523547,1759231841821,-294.6,0.00019241,3]
[388523548,1759231841830,-411.15,0.00019241,2]
[388523549,1759231841839,-500.0,0.00019241,2]
[388523550,1759231841850,-420.0,0.00019241,2]
[388523551,1759231841859,-400.0,0.00019241,2]
[388523552,1759231841868,-500.0,0.00019241,2]
[388523553,1759231841877,-500.0,0.00019241,2]
[388523554,1759231841887,-2830.04,0.00019242,3]
[388523555,1759231841897,-2358.36,0.00019242,3]
[388523556,1759231841907,-1179.18,0.00019242,3]
[388523557,1759231841916,-589.59,0.00019242,3]
[388523558,1759231841926,-294.8,0.00019242,3]
[388523559,1759231841938,-884.42,0.00019242,3]
[388523560,1759231841949,-151.0,0.00019242,2]
[388523561,1759231841959,-190.217773,0.00019242,2]
[388523562,1759231841969,-190.217773,0.00019242,2]
[388523563,1759231841979,-190.217773,0.00019242,2]
[388523564,1759231841989,-190.217773,0.00019242,2]
[388523565,1759231841998,-151.0,0.00019242,2]
[388523566,1759231842008,-151.0,0.00019246,2]
[388523567,1759231842017,-151.0,0.00019246,2]
[388523568,1759231842027,-480.0,0.00019248,2]
[388523569,1759231842036,-480.0,0.00019248,2]
[388523570,1759231842045,-500.0,0.00019248,2]
[388523571,1759231842055,-500.0,0.00019248,2]
[388523572,1759231842064,-460.0,0.00019248,2]
[388523573,1759231842073,-500.0,0.00019248,2]
[388523574,1759231842083,-500.0,0.00019248,2]
[388523575,1759231842095,-480.0,0.00019248,2]
[388523576,1759231842104,-863.27,0.00019248,2]
[388523577,1759231842114,-460.94714268,0.00019248,2]
[388523578,1759231842124,-500.0,0.00019248,2]
[388523579,1759231842133,-500.0,0.00019248,2]
[388523580,1759231842142,-463.88,0.00019248,2]
[388523581,1759231842151,-500.0,0.00019248,2]
[388523582,1759231842160,-500.0,0.00019248,2]
[388523583,1759231842170,-3736.8,0.00019248,2]
[388523584,1759231842182,-1001.32,0.00019248,2]
[388523585,1759231842191,-500.0,0.00019248,2]
[388523586,1759231842200,-674.15,0.00019248,2]
[388523587,1759231842210,-500.0,0.00019248,2]
[388523588,1759231842219,-500.0,0.00019248,2]
[388523589,1759231842229,-151.0,0.00019248,2]
[388523590,1759231842238,-151.0,0.00019248,2]
[388523591,1759231842250,-151.0,0.00019248,2]
[388523592,1759231842259,-197.415164,0.00019248,2]
[388523593,1759231842268,-500.0,0.00019248,2]
[388523594,1759231842277,-500.0,0.00019248,2]
[388523595,1759231842286,-500.0,0.00019248,2]
[388523596,1759231842295,-2738.63,0.00019248,2]
[388523597,1759231842305,-1156.751358,0.00019248,2]
[388523598,1759231842314,-1156.751358,0.00019248,2]
[388523599,1759231842323,-1156.751358,0.00019248,2]
[388523600,1759231842336,-1156.751358,0.00019248,2]
[388523601,1759231842345,-500.0,0.00019248,2]
[388523602,1759231842355,-151.0,0.00019248,2]
[388523603,1759231842364,-500.0,0.00019248,2]
[388523604,1759231842374,-151.0,0.00019248,2]
[388523605,1759231842383,-500.0,0.00019248,2]
[388523606,1759231842392,-151.0,0.00019248,2]
[388523607,1759231842401,-507.02,0.00019248,2]
[388523608,1759231842410,-151.0,0.00019249,2]
[388523609,1759231842422,-198.0,0.00019249,2]
[388523610,1759231842435,-500.0,0.0001925,2]
[388523611,1759231842444,-500.0,0.0001925,2]
[388523612,1759231842453,-500.0,0.0001925,2]
[388523613,1759231842463,-481.87458044,0.0001925,2]
[388523614,1759231842472,-276.91367801,0.0001925,2]
[388523615,1759231842481,-500.0,0.0001925,2]
[388523616,1759231842490,-500.0,0.0001925,2]
[388523617,1759231842500,-500.0,0.0001925,2]
[388523618,1759231842509,-500.0,0.0001925,2]
[388523619,1759231842518,-500.0,0.0001925,2]
[388523620,1759231842526,-500.0,0.0001925,2]
[388523621,1759231842536,-480.0,0.0001925,2]
[388523622,1759231842545,-480.0,0.0001925,2]
[388523623,1759231842554,-500.0,0.0001925,2]
[388523624,1759231842563,-198.0,0.0001925,2]
[388523625,1759231842575,-151.0,0.0001925,2]
[388523626,1759231842586,-151.0,0.0001925,2]
[388523627,1759231842595,-151.0,0.0001925,2]
[388523628,1759231842607,-151.0,0.0001925,2]
[388523629,1759231842617,-172.14,0.0001925,2]
[388523630,1759231842627,-500.0,0.0001925,2]
[388523631,1759231842637,-171.875331,0.0001925,2]
[388523632,1759231842647,-151.0,0.0001925,2]
[388523633,1759231842656,-190.217773,0.0001925,2]
[388523634,1759231842665,-190.217773,0.0001925,2]
[388523635,1759231842675,-190.217773,0.0001925,2]
[388523636,1759231842691,-190.217773,0.0001925,2]
[388523637,1759231842700,-500.0,0.0001925,2]
[388523638,1759231842709,-510.25,0.0001925,2]
[388523639,1759231842719,-500.0,0.0001925,2]
[388523640,1759231842728,-500.0,0.0001925,2]
[388523641,1759231842737,-500.0,0.0001925,2]
[388523642,1759231842747,-500.0,0.0001925,2]
[388523644,1759231842757,-500.0,0.0001925,2]
[388523645,1759231842766,-440.0,0.0001925,2]
[388523647,1759231842776,-151.0,0.0001925,2]
[388523648,1759231842785,-151.0,0.0001925,2]
[388523649,1759231842795,-151.0,0.0001925,2]
[388523650,1759231842804,-500.0,0.0001925,2]
[388523651,1759231842813,-500.0,0.0001925,2]
[388523653,1759231842823,-500.0,0.0001925,2]
[388523655,1759231842832,-340.35362091,0.0001925,2]
[388523656,1759231842840,-1156.751358,0.0001925,2]
[388523657,1759231842849,-500.0,0.0001925,2]
[388523658,1759231842858,-1156.751358,0.0001925,2]
[388523659,1759231842867,-1156.751358,0.0001925,2]
[388523660,1759231842876,-1156.751358,0.0001925,2]
[388523661,1759231842885,-151.0,0.0001925,2]
[388523662,1759231842895,-151.0,0.0001925,2]
[388523663,1759231842904,-151.0,0.0001925,2]
[388523664,1759231842913,-525.53,0.00019251,2]
[388523665,1759231842923,-481.93210919,0.00019251,2]
[388523666,1759231842932,-480.0,0.00019251,2]
[388523667,1759231842942,-151.0,0.00019251,2]
[388523668,1759231842951,-153.488833,0.00019251,2]
[388523669,1759231842961,-151.0,0.00019251,2]
[388523670,1759231842970,-151.0,0.00019251,2]
[388523671,1759231842979,-151.0,0.00019252,2]
[388523672,1759231842988,-151.0,0.00019252,2]
[388523673,1759231842998,-151.0,0.00019252,2]
[388523674,1759231843009,-284.931451,0.00019252,2]
[388523675,1759231843019,-151.0,0.00019252,2]
[388523676,1759231843029,-190.217773,0.00019252,2]
[388523677,1759231843038,-190.217773,0.00019252,2]
[388523678,1759231843047,-190.217773,0.00019252,2]
[388523679,1759231843056,-190.217773,0.00019252,2]
[388523680,1759231843067,-151.0,0.00019252,2]
[388523681,1759231843078,-151.0,0.00019252,2]
[388523682,1759231843087,-151.0,0.00019252,2]
[388523683,1759231843100,-1156.751358,0.00019252,2]
[388523684,1759231843110,-1156.751358,0.00019252,2]
[388523685,1759231843121,-1156.751358,0.00019252,2]
[388523686,1759231843131,-1156.751358,0.00019252,2]
[388523687,1759231843142,-151.0,0.00019252,2]
[388523688,1759231843152,-151.0,0.00019252,2]
[388523689,1759231843163,-170.228615,0.00019252,2]
[388523690,1759231843172,-95634.22135162,0.00019252,2]
[388523691,1759231843192,-17141.49486302,0.00019252,2]
[388523692,1759231843203,-1326.66510949,0.00019252,2]
[388523693,1759231843426,-500.0,0.00019177,2]
[388523694,1759231843437,-500.0,0.00019177,2]
[388523695,1759231843446,-480.0,0.00019178,2]
[388523696,1759231843455,-12467.52148022,0.00019252,2]
[388523697,1759231843612,-1702.10233677,0.00019252,2]
[388523698,1759231843624,-315.98676429,0.00019252,2]
[388523903,1759231846437,-436.34609954,0.00019178,2]
[388523905,1759231846449,-63.65390046,0.00019178,2]
[388523907,1759231846459,-891.55944421,0.00019252,2]
[388524303,1759231850863,935.95294776,0.00019127,2]
[388525649,1759231872572,8264.05705224,0.0001825,2]
[388525650,1759231872593,9040.72168556,0.0001825,2]
[388525651,1759231963299,567.38154673,0.00019037,2]